bitfinex-derivatives/quotes_BTCF0:USTF0_20250828
["timestamp","ask_amount","ask_price","bid_price","bid_amount"]
[1756404975388,0.06019009,112350.0,112340.0,0.62579523]
[1756404975892,0.88891009,112350.0,112340.0,0.62579523]
[1756404977293,0.88891009,112350.0,112340.0,0.14638241]
[1756404977593,0.88891009,112350.0,112340.0,0.62579523]
[1756404978395,0.97791059,112350.0,112340.0,0.62579523]
[1756404980792,1.45732341,112350.0,112340.0,0.12357241]
[1756404980999,1.45732341,112350.0,112340.0,0.10763241]
[1756404982396,1.45732341,112350.0,112340.0,0.12333241]
[1756404982999,0.97791059,112350.0,112340.0,0.12333241]
[1756404983489,1.45732341,112350.0,112340.0,0.12333241]
[1756404984899,1.45712341,112350.0,112340.0,0.14819241]
[1756404985201,0.97771059,112350.0,112340.0,0.14819241]
[1756404985400,0.97771059,112350.0,112340.0,0.12333241]
[1756404985597,0.97771059,112350.0,112340.0,0.14819241]
[1756404986996,0.97771059,112350.0,112340.0,0.12333241]
[1756404987406,1.51706736,112350.0,112340.0,0.66268918]
[1756404987996,0.68854736,112350.0,112340.0,0.66268918]
[1756404988207,0.97755059,112350.0,112340.0,0.68754918]
[1756404988405,0.68854736,112350.0,112340.0,0.68754918]
[1756404988900,0.06019009,112350.0,112340.0,0.68754918]
[1756404989102,0.88851009,112350.0,112340.0,0.68754918]
[1756404990601,0.06019009,112350.0,112340.0,0.68754918]
[1756404990794,0.86468009,112350.0,112340.0,0.68754918]
[1756404991000,0.86468009,112350.0,112340.0,1.47690595]
[1756404991207,0.86496009,112350.0,112340.0,0.39819241]
[1756404991511,0.84905009,112350.0,112340.0,0.87744571]
[1756404992304,0.02077009,112350.0,112340.0,0.87744571]
[1756404992912,0.02077009,112350.0,112340.0,0.87844571]
[1756404993409,0.01977009,112350.0,112340.0,0.87844571]
[1756404993609,0.86711,112360.0,112350.0,0.1049305]
[1756404993801,0.86711,112360.0,112350.0,0.6070738]
[1756404995504,0.04296036,112370.0,112360.0,0.02289]
[1756404995709,0.88699036,112370.0,112360.0,0.62475144]
[1756404997706,0.88699036,112370.0,112360.0,0.14549814]
[1756404997905,0.88691036,112370.0,112360.0,0.62475144]
[1756404998210,0.88687036,112370.0,112360.0,0.62475144]
[1756404999013,0.03595036,112370.0,112360.0,1.10400474]
[1756404999512,0.02004036,112370.0,112360.0,1.10400474]
[1756404999712,0.02004036,112370.0,112360.0,1.35400474]
[1756405000106,0.02004036,112370.0,112360.0,1.35500474]
[1756405000612,0.02004036,112370.0,112360.0,1.35600474]
[1756405000913,0.02004036,112370.0,112360.0,1.35500474]
[1756405001108,0.02004036,112370.0,112360.0,1.35700474]
[1756405002615,0.02004036,112370.0,112360.0,1.36577384]
[1756405003008,0.03595036,112370.0,112360.0,0.40626724]
[1756405003215,0.03595036,112370.0,112360.0,1.36577384]
[1756405003714,0.05887036,112370.0,112360.0,0.63652054]
[1756405004505,0.05887036,112370.0,112360.0,0.63552054]
[1756405004813,0.03595036,112370.0,112360.0,0.63352054]
[1756405005216,0.02004036,112370.0,112360.0,0.63352054]
[1756405005613,0.02004036,112370.0,112360.0,1.11277384]
[1756405006516,0.03883,112380.0,112370.0,0.1118746]
[1756405006718,0.03883,112380.0,112370.0,0.6070579]
[1756405007213,0.02292,112390.0,112380.0,0.1118667]
[1756405007414,0.05874034,112400.0,112390.0,0.1048988]
[1756405007717,0.05874034,112400.0,112390.0,0.6070421]
[1756405009120,0.03582034,112400.0,112390.0,0.6070421]
[1756405009620,0.03682034,112400.0,112390.0,0.6070421]
[1756405010207,0.03582034,112400.0,112390.0,0.6070421]
[1756405011318,0.01991034,112400.0,112390.0,0.6070421]
[1756405016914,0.01591,112410.0,112400.0,0.1048884]
[1756405017119,1.73147,112420.0,112410.0,0.127773]
[1756405017321,0.03883,112420.0,112410.0,0.63402596]
[1756405017622,0.03883,112420.0,112410.0,0.10722176]
[1756405017827,0.86599,112420.0,112410.0,0.60240506]
[1756405018019,0.86599,112420.0,112410.0,0.14604176]
[1756405018323,1.11599,112420.0,112410.0,0.62529506]
[1756405018618,1.11599,112420.0,112410.0,0.14604176]
[1756405018824,1.11599,112420.0,112410.0,0.62529506]
[1756405020022,1.11899,112420.0,112410.0,0.62570506]
[1756405020417,1.11891,112420.0,112410.0,0.62570506]
[1756405020718,1.12091,112420.0,112410.0,0.62570506]
[1756405020911,0.02091,112420.0,112410.0,0.62570506]
[1756405021322,0.005,112420.0,112410.0,0.62570506]
[1756405022118,0.02078,112420.0,112410.0,0.62570506]
[1756405022325,0.005,112420.0,112410.0,0.62570506]
[1756405025628,0.02078,112420.0,112410.0,0.62570506]
[1756405025929,0.005,112420.0,112410.0,0.62570506]
[1756405028126,0.02078,112420.0,112410.0,0.62570506]
[1756405029327,0.005,112420.0,112410.0,0.62570506]
[1756405032127,0.03923,112450.0,112440.0,0.1044493]
[1756405032325,0.03923,112450.0,112440.0,0.62629161]
[1756405032326,0.57743657,112450.0,112440.0,0.62629161]
[1756405032531,0.50740357,112450.0,112440.0,0.62629161]
[1756405033234,0.51140357,112450.0,112440.0,0.62629161]
[1756405033734,0.51640357,112450.0,112440.0,0.62629161]
[1756405034329,0.51640357,112450.0,112440.0,0.15614941]
[1756405034628,0.51640357,112450.0,112440.0,0.14703831]
[1756405034934,0.51640357,112450.0,112440.0,0.62629161]
[1756405036136,0.51640357,112450.0,112440.0,0.14703831]
[1756405036635,0.51640357,112450.0,112440.0,0.12279831]
[1756405036831,0.51640357,112450.0,112440.0,0.14703831]
[1756405037026,0.58813671,112450.0,112440.0,0.12279831]
[1756405037524,0.58813671,112450.0,112440.0,0.14703831]
[1756405037936,0.58813671,112450.0,112440.0,0.12279831]
[1756405038342,0.58813671,112450.0,112440.0,0.14703831]
[1756405038539,0.58813671,112450.0,112440.0,0.62629161]
[1756405039342,0.58813671,112450.0,112440.0,0.14703831]
[1756405039841,0.14545671,112450.0,112440.0,0.14703831]
[1756405040140,0.98085671,112450.0,112440.0,0.12279831]
[1756405041232,0.98085671,112450.0,112440.0,0.14703831]
[1756405041433,0.98085671,112450.0,112440.0,0.62629161]
[1756405041640,0.14545671,112450.0,112440.0,0.62629161]
[1756405041934,0.98037671,112450.0,112440.0,0.62629161]
[1756405042739,0.98037671,112450.0,112440.0,0.60205161]
[1756405042937,0.98037671,112450.0,112440.0,0.12279831]
[1756405043137,0.98037671,112450.0,112440.0,0.14703831]
[1756405043940,0.14545671,112450.0,112440.0,0.12279831]
[1756405044140,0.98013671,112450.0,112440.0,0.12279831]
[1756405044340,1.06905791,112450.0,112440.0,0.14703831]
[1756405045536,1.06905791,112450.0,112440.0,0.62629161]
[1756405046036,0.23437791,112450.0,112440.0,0.62629161]
[1756405046339,1.06869791,112450.0,112440.0,0.62629161]
[1756405048946,0.14545671,112450.0,112440.0,0.62629161]
[1756405049140,0.90720357,112450.0,112440.0,0.62629161]
[1756405049341,0.88443357,112450.0,112440.0,0.62629161]
[1756405049838,0.90788357,112450.0,112440.0,0.62629161]
[1756405050748,0.07372357,112450.0,112440.0,0.62629161]
[1756405050946,0.88427357,112450.0,112440.0,0.62629161]
[1756405051648,0.05027357,112450.0,112440.0,0.62629161]
[1756405052746,0.90794357,112450.0,112440.0,0.62629161]
[1756405054847,0.90794357,112450.0,112440.0,0.12279831]
[1756405055051,0.88245,112450.0,112440.0,0.12279831]
[1756405055253,0.88245,112450.0,112440.0,0.62647161]
[1756405055944,0.04841,112450.0,112440.0,0.62647161]
[1756405056144,0.88217,112450.0,112440.0,0.62647161]
[1756405056750,0.04841,112450.0,112440.0,0.62647161]
[1756405056947,0.88217,112450.0,112440.0,0.62647161]
[1756405057147,0.87717,112450.0,112440.0,0.62647161]
[1756405057349,0.88017,112450.0,112440.0,0.62685161]
[1756405057551,0.04641,112450.0,112440.0,0.62685161]
[1756405057755,0.87569,112450.0,112440.0,0.62685161]
[1756405057957,0.87769,112450.0,112440.0,0.62685161]
[1756405058151,0.87569,112450.0,112440.0,0.62685161]
[1756405059959,0.87569,112450.0,112440.0,0.14759831]
[1756405060157,0.87569,112450.0,112440.0,0.62685161]
[1756405060847,0.04241,112450.0,112440.0,0.62685161]
[1756405061052,0.87533,112450.0,112440.0,0.62685161]
[1756405063355,0.87525,112450.0,112440.0,0.62685161]
[1756405063951,0.87525,112450.0,112440.0,0.14759831]
[1756405064153,0.87525,112450.0,112440.0,0.62685161]
[1756405065853,0.87525,112450.0,112440.0,0.14759831]
[1756405066158,0.87525,112450.0,112440.0,0.62685161]
[1756405067657,0.87441,112450.0,112440.0,0.62685161]
[1756405068461,0.87441,112450.0,112440.0,0.14759831]
[1756405068661,0.87441,112450.0,112440.0,0.62685161]
[1756405068962,0.87441,112450.0,112440.0,0.14759831]
[1756405069148,0.87441,112450.0,112440.0,0.62685161]
[1756405071061,0.04241,112450.0,112440.0,0.62685161]
[1756405071262,0.87397,112450.0,112440.0,0.62685161]
[1756405071457,0.87397,112450.0,112440.0,0.14759831]
[1756405071658,0.87397,112450.0,112440.0,0.62685161]
[1756405073663,0.04241,112450.0,112440.0,0.62685161]
[1756405074162,0.87373,112450.0,112440.0,0.62685161]
[1756405076967,0.04241,112450.0,112440.0,0.62685161]
[1756405077367,0.87345,112450.0,112440.0,0.62685161]
[1756405077575,0.04241,112450.0,112440.0,0.62685161]
[1756405077772,0.87345,112450.0,112440.0,0.62685161]
[1756405080271,1.6916245,112450.0,112440.0,0.00038]
[1756405080474,0.0889291,112440.0,112430.0,0.20040383]
[1756405080775,0.0889291,112440.0,112430.0,0.088937]
[1756405080776,0.6078524,112440.0,112430.0,0.088937]
[1756405080973,0.8578524,112440.0,112430.0,0.088937]
[1756405081479,1.3371057,112440.0,112430.0,0.088937]
[1756405081974,0.8578524,112440.0,112430.0,0.088937]
[1756405083976,1.6920124,112440.0,112430.0,0.088937]
[1756405084179,1.6940124,112440.0,112430.0,0.088937]
[1756405084976,0.1049773,112430.0,112420.0,0.0889371]
[1756405085180,0.62804929,112430.0,112420.0,0.0889371]
[1756405087080,0.15079599,112430.0,112420.0,0.0889371]
[1756405087282,0.63104929,112430.0,112420.0,0.0889371]
[1756405087882,0.62904929,112430.0,112420.0,0.0889371]
[1756405088083,0.63304929,112430.0,112420.0,0.0889371]
[1756405088982,0.63304929,112430.0,112410.0,0.10721636]
[1756405088983,0.1286149,112420.0,112410.0,0.10721636]
[1756405089180,1.4383882,112420.0,112410.0,0.10721636]
[1756405090079,1.4403882,112420.0,112410.0,0.10721636]
[1756405090280,1.4413882,112420.0,112410.0,0.10721636]
[1756405090681,1.4413882,112420.0,112410.0,0.12285636]
[1756405091182,1.4433882,112420.0,112410.0,0.12285636]
[1756405091682,0.6128682,112420.0,112410.0,0.14592636]
[1756405091980,1.4431082,112420.0,112410.0,0.12285636]
[1756405093078,1.4431082,112420.0,112410.0,0.10721636]
[1756405093285,1.4431082,112420.0,112410.0,0.12285636]
[1756405093488,1.4431082,112420.0,112410.0,0.10721636]
[1756405095076,0.1286228,112410.0,112400.0,0.0889532]
[1756405095284,0.6273329,112410.0,112400.0,0.1045932]
[1756405096586,0.0889607,112400.0,112390.0,0.1120341]
[1756405096791,1.51017806,112400.0,112390.0,0.1046041]
[1756405097185,1.03092476,112400.0,112390.0,0.1046041]
[1756405097385,1.51017806,112400.0,112390.0,0.1046041]
[1756405097785,1.51017806,112400.0,112390.0,0.1276741]
[1756405098291,0.1286386,112390.0,112380.0,0.14549543]
[1756405098489,1.4576006,112390.0,112380.0,0.14549543]
[1756405099389,0.9783473,112390.0,112380.0,0.14549543]
[1756405099688,0.0591787,112390.0,112380.0,0.14549543]
[1756405100090,0.8890587,112390.0,112380.0,0.14549543]
[1756405100290,0.0591787,112390.0,112380.0,0.14549543]
[1756405100483,0.8901387,112390.0,112380.0,0.14549543]
[1756405101088,0.8921387,112390.0,112380.0,0.14549543]
[1756405101390,0.9811073,112390.0,112380.0,0.14549543]
[1756405101889,0.1511473,112390.0,112380.0,0.14549543]
[1756405102091,0.9811473,112390.0,112380.0,0.14549543]
[1756405106288,0.1511473,112390.0,112380.0,0.14549543]
[1756405106491,0.9807073,112390.0,112380.0,0.14549543]
[1756405106892,0.9807073,112390.0,112380.0,0.62474873]
[1756405107394,0.9807073,112390.0,112380.0,0.14549543]
[1756405110292,0.9807073,112390.0,112380.0,0.12242543]
[1756405110498,0.9807073,112390.0,112380.0,0.14500543]
[1756405115101,0.9807073,112390.0,112380.0,0.12242543]
[1756405115502,0.9807073,112390.0,112380.0,0.14500543]
[1756405118603,0.1511473,112390.0,112380.0,0.14500543]
[1756405118795,0.9795073,112390.0,112380.0,0.14500543]
[1756405119405,0.1511473,112390.0,112380.0,0.14500543]
[1756405119704,0.9795073,112390.0,112380.0,0.14500543]
[1756405122704,0.9795473,112390.0,112380.0,0.14500543]
[1756405123898,0.0621787,112390.0,112380.0,0.14500543]
[1756405124104,0.8905387,112390.0,112380.0,0.62425873]
[1756405125705,0.0621787,112390.0,112380.0,0.62425873]
[1756405125901,0.8905387,112390.0,112380.0,0.62425873]
[1756405126304,0.0621787,112390.0,112380.0,0.62425873]
[1756405126499,0.8905387,112390.0,112380.0,0.87425873]
[1756405126900,0.8508687,112390.0,112380.0,0.87425873]
[1756405127103,0.8478687,112390.0,112380.0,0.87425873]
[1756405127407,0.0345287,112390.0,112380.0,0.87425873]
[1756405127615,0.0195087,112390.0,112380.0,0.87425873]
[1756405128697,0.0195087,112390.0,112380.0,0.87573281]
[1756405129104,0.0195087,112390.0,112380.0,0.87673281]
[1756405129597,0.0195087,112390.0,112380.0,0.94705145]
[1756405133114,0.0195087,112390.0,112380.0,0.69705145]
[1756405133303,0.0195087,112390.0,112380.0,0.94705145]
[1756405133503,0.0195087,112390.0,112380.0,0.69705145]
[1756405138816,1.13568147,112410.0,112400.0,0.1269107]
[1756405139005,1.13568147,112410.0,112400.0,0.62418024]
[1756405140308,0.39828147,112410.0,112400.0,0.62418024]
[1756405141111,0.35888147,112410.0,112400.0,1.10343354]
[1756405141316,0.0194568,112410.0,112400.0,1.10343354]
[1756405142421,0.0194568,112410.0,112400.0,1.35343354]
[1756405143120,0.0194568,112410.0,112400.0,1.35543354]
[1756405143319,0.0194568,112410.0,112400.0,1.35743354]
[1756405143623,0.0194568,112410.0,112400.0,1.35543354]
[1756405143822,0.0194568,112410.0,112400.0,1.35743354]
[1756405145125,0.0194568,112410.0,112400.0,1.46890057]
[1756405145623,0.0194568,112410.0,112400.0,1.35743354]
[1756405145825,0.0437768,112410.0,112400.0,1.35743354]
[1756405146021,0.0590268,112410.0,112400.0,0.87818024]
[1756405146521,0.0590268,112410.0,112400.0,0.87618024]
[1756405146721,0.0590268,112410.0,112400.0,0.87718024]
[1756405147126,0.0590268,112410.0,112400.0,0.87518024]
[1756405147325,0.0590268,112410.0,112400.0,0.87618024]
[1756405147726,0.0347068,112410.0,112400.0,0.87618024]
[1756405148328,0.0590268,112410.0,112400.0,0.87618024]
[1756405148523,0.0590268,112410.0,112400.0,0.98764727]
[1756405148728,0.0347068,112410.0,112400.0,0.98764727]
[1756405150631,0.0194568,112410.0,112400.0,0.98764727]
[1756405151237,0.0194568,112410.0,112400.0,1.46690057]
[1756405151636,0.86769,112420.0,112410.0,0.1048728]
[1756405151937,0.86769,112420.0,112410.0,0.6084361]
[1756405152136,0.05975869,112430.0,112420.0,0.1048649]
[1756405152331,0.23163869,112430.0,112420.0,0.62652757]
[1756405153536,0.23263869,112430.0,112420.0,0.62652757]
[1756405153932,0.23463869,112430.0,112420.0,0.62652757]
[1756405154133,0.03843869,112430.0,112420.0,0.62652757]
[1756405154332,0.03643869,112430.0,112420.0,0.62652757]
[1756405154633,0.02118869,112430.0,112420.0,0.62752757]
[1756405155236,0.03643869,112430.0,112420.0,0.62752757]
[1756405155932,0.02118869,112430.0,112420.0,0.62752757]
[1756405156134,0.02018869,112430.0,112420.0,0.62752757]
[1756405156328,0.02018869,112430.0,112420.0,0.62852757]
[1756405156733,0.02018869,112430.0,112420.0,0.63726495]
[1756405157238,0.02018869,112430.0,112420.0,0.15801165]
[1756405157434,0.02018869,112430.0,112420.0,0.63726495]
[1756405161037,9e-08,112430.0,112420.0,0.63726495]
[1756405161238,0.02432,112450.0,112430.0,0.0889346]
[1756405161438,0.05933777,112450.0,112440.0,0.6084124]
[1756405161634,0.05933777,112450.0,112440.0,0.62666092]
[1756405162543,0.07922427,112450.0,112440.0,0.62666092]
[1756405163435,0.08122427,112450.0,112440.0,0.62666092]
[1756405163739,0.08222427,112450.0,112440.0,0.62666092]
[1756405164344,0.08122427,112450.0,112440.0,0.62666092]
[1756405164537,0.07922427,112450.0,112440.0,0.62666092]
[1756405165843,0.05490427,112450.0,112440.0,0.62666092]
[1756405166347,0.07922427,112450.0,112440.0,0.62666092]
[1756405168044,0.05490427,112450.0,112440.0,0.62666092]
[1756405168439,0.07922427,112450.0,112440.0,0.62666092]
[1756405173045,0.07922427,112450.0,112440.0,0.14740762]
[1756405173246,0.07922427,112450.0,112440.0,0.62666092]
[1756405175450,0.90658427,112450.0,112440.0,0.62666092]
[1756405175944,0.07922427,112450.0,112440.0,0.62666092]
[1756405176145,0.90658427,112450.0,112440.0,0.62666092]
[1756405176652,0.05490427,112450.0,112440.0,0.62666092]
[1756405176950,0.86701427,112450.0,112440.0,0.62666092]
[1756405177149,0.03965427,112450.0,112440.0,0.62666092]
[1756405182453,0.05489427,112450.0,112440.0,0.62666092]
[1756405182648,0.03965427,112450.0,112440.0,0.62666092]
[1756405183355,0.05489427,112450.0,112440.0,0.62666092]
[1756405183656,0.03965427,112450.0,112440.0,0.62666092]
[1756405185159,0.05489427,112450.0,112440.0,0.62666092]
[1756405185552,0.07905427,112450.0,112440.0,0.62666092]
[1756405187560,0.08105427,112450.0,112440.0,0.62666092]
[1756405187757,0.08205427,112450.0,112440.0,0.14740762]
[1756405187961,0.08205427,112450.0,112440.0,0.62666092]
[1756405188461,0.08105427,112450.0,112440.0,0.62666092]
[1756405188961,0.88389427,112450.0,112440.0,0.62666092]
[1756405189160,0.88189427,112450.0,112440.0,0.62666092]
[1756405189660,0.05489427,112450.0,112440.0,0.62666092]
[1756405189959,0.88185427,112450.0,112440.0,0.62666092]
[1756405193563,0.05489427,112450.0,112440.0,0.62666092]
[1756405193762,0.88177427,112450.0,112440.0,0.62666092]
[1756405194465,0.05489427,112450.0,112440.0,0.62666092]
[1756405194666,0.88173427,112450.0,112440.0,0.62666092]
[1756405195759,0.88169427,112450.0,112440.0,0.62666092]
[1756405195964,0.90585427,112450.0,112440.0,0.62666092]
[1756405199271,0.90585427,112450.0,112440.0,1.22394276]
[1756405199766,0.07905427,112450.0,112440.0,1.22394276]
[1756405200068,0.90573427,112450.0,112440.0,1.22394276]
[1756405201971,0.90569427,112450.0,112440.0,1.22394276]
[1756405206275,0.07905427,112450.0,112440.0,1.22394276]
[1756405206474,0.90553427,112450.0,112440.0,1.22394276]
[1756405209077,0.90549427,112450.0,112440.0,1.22394276]
[1756405209882,0.90549427,112450.0,112440.0,1.33540979]
[1756405211078,0.90549427,112450.0,112440.0,1.22394276]
[1756405213479,0.07905427,112450.0,112440.0,1.22394276]
[1756405213983,0.90533427,112450.0,112440.0,1.22394276]
[1756405215578,0.90533427,112450.0,112440.0,1.33540979]
[1756405215782,0.05993767,112470.0,112460.0,0.0889135]
[1756405216085,0.88613767,112470.0,112460.0,1.2226644]
[1756405216379,0.05993767,112470.0,112460.0,1.2226644]
[1756405216785,0.86621,112470.0,112460.0,1.33413143]
[1756405217183,0.04501,112470.0,112460.0,1.3428272]
[1756405217584,0.87117,112470.0,112460.0,1.23136017]
[1756405219388,0.04501,112470.0,112460.0,0.6330599]
[1756405219589,0.87105,112470.0,112460.0,0.6330599]
[1756405219785,0.84707,112470.0,112460.0,0.6330599]
[1756405220089,0.87105,112470.0,112460.0,0.6330599]
[1756405221490,0.87101,112470.0,112460.0,0.6330599]
[1756405222388,0.04501,112470.0,112460.0,0.6330599]
[1756405222589,0.87093,112470.0,112460.0,0.6330599]
[1756405222885,0.005,112470.0,112460.0,1.7089799]
[1756405223085,0.005,112470.0,112460.0,1.82044693]
[1756405223687,1.71518,112490.0,112470.0,0.0889032]
[1756405223885,0.86589,112490.0,112480.0,1.08481744]
[1756405224084,0.86589,112490.0,112480.0,1.10270952]
[1756405225394,0.86581,112490.0,112480.0,1.10270952]
[1756405226088,0.86781,112490.0,112480.0,1.10270952]
[1756405226783,0.87281,112490.0,112480.0,1.10270952]
[1756405226985,0.87277,112490.0,112480.0,1.10270952]
[1756405227188,0.04701,112490.0,112480.0,1.10270952]
[1756405227390,0.63219,112490.0,112480.0,1.10270952]
[1756405228395,0.65617,112490.0,112480.0,1.10270952]
[1756405228593,0.02303,112490.0,112480.0,1.10270952]
[1756405228792,0.04701,112490.0,112480.0,1.10270952]
[1756405229689,0.02303,112490.0,112480.0,1.10270952]
[1756405230692,0.04643,112490.0,112480.0,1.10270952]
[1756405231795,0.04643,112490.0,112480.0,0.14623978]
[1756405231993,0.04643,112490.0,112480.0,0.62447465]
[1756405234497,0.04643,112490.0,112480.0,0.14623978]
[1756405234699,0.04643,112490.0,112480.0,0.62447465]
[1756405241413,0.04643,112490.0,112480.0,0.68412173]
[1756405243312,0.04643,112490.0,112480.0,0.14623978]
[1756405243815,0.92320125,112490.0,112480.0,0.68412173]
[1756405244003,0.29643,112490.0,112480.0,0.68412173]
[1756405244206,1.12151,112490.0,112480.0,0.68412173]
[1756405244406,1.2103993,112490.0,112480.0,0.68412173]
[1756405245216,1.12147,112490.0,112480.0,0.68412173]
[1756405245407,1.12147,112490.0,112480.0,0.6244327]
[1756405247615,0.29643,112490.0,112480.0,0.6244327]
[1756405248022,0.007,112490.0,112480.0,1.10262562]
[1756405249020,0.04631,112490.0,112480.0,0.14623978]
[1756405249211,0.04631,112490.0,112480.0,1.10262562]
[1756405249410,0.04631,112490.0,112480.0,0.6244327]
[1756405249820,0.04631,112490.0,112480.0,0.14623978]
[1756405250118,0.04631,112490.0,112480.0,0.6244327]
[1756405251116,0.87119,112490.0,112480.0,0.6244327]
[1756405253606,0.87115,112490.0,112480.0,0.6244327]
[1756405255618,0.83176,112490.0,112480.0,1.10262562]
[1756405256214,0.87107,112490.0,112480.0,0.14623978]
[1756405256414,0.87107,112490.0,112480.0,1.10262562]
[1756405256622,0.84767,112490.0,112480.0,1.10262562]
[1756405258818,0.007,112490.0,112480.0,1.10262562]
[1756405259318,0.007,112490.0,112480.0,1.35262562]
[1756405259622,0.007,112490.0,112480.0,1.46409265]
[1756405264315,0.03158,112490.0,112480.0,1.46409265]
[1756405264515,0.03158,112490.0,112480.0,0.73589973]
[1756405264724,0.04706,112490.0,112480.0,0.73589973]
[1756405268533,0.02248,112490.0,112480.0,1.21409265]
[1756405269941,0.02248,112490.0,112480.0,1.21451265]
[1756405272240,0.007,112490.0,112480.0,1.21451265]
[1756405273332,0.007,112490.0,112480.0,1.33370499]
[1756405273945,0.003,112490.0,112480.0,1.33370499]
[1756405274140,0.004,112490.0,112480.0,1.33370499]
[1756405274947,0.001,112490.0,112480.0,1.33370499]
[1756405275147,0.002,112490.0,112480.0,1.33370499]
[1756405275449,0.04412214,112510.0,112490.0,0.0888879]
[1756405275645,0.88380214,112510.0,112500.0,1.20473008]
[1756405276042,0.03502214,112510.0,112500.0,1.20473008]
[1756405276749,0.04002214,112510.0,112500.0,1.20473008]
[1756405277153,0.04102214,112510.0,112500.0,1.20473008]
[1756405277449,0.02554214,112510.0,112500.0,0.62496351]
[1756405277651,0.04102214,112510.0,112500.0,0.62496351]
[1756405278452,0.06560214,112510.0,112500.0,0.14703446]
[1756405278644,0.40447614,112510.0,112500.0,0.14703446]
[1756405278843,0.40547614,112510.0,112500.0,0.62496351]
[1756405279355,0.31660214,112510.0,112500.0,0.62496351]
[1756405279952,1.14068214,112510.0,112500.0,0.62496351]
[1756405280655,0.31660214,112510.0,112500.0,0.62496351]
[1756405280846,1.14068214,112510.0,112500.0,0.62496351]
[1756405281348,0.31660214,112510.0,112500.0,0.62496351]
[1756405281548,1.14064214,112510.0,112500.0,0.62496351]
[1756405282353,1.11606214,112510.0,112500.0,0.62496351]
[1756405282850,1.11602214,112510.0,112500.0,0.62496351]
[1756405283753,0.29202214,112510.0,112500.0,0.62496351]
[1756405283956,1.11602214,112510.0,112500.0,0.62496351]
[1756405284256,0.85054214,112510.0,112500.0,0.62496351]
[1756405284556,0.86602214,112510.0,112500.0,0.62496351]
[1756405284953,0.85054214,112510.0,112500.0,0.62496351]
[1756405285154,0.02654214,112510.0,112500.0,0.62496351]
[1756405285356,0.85050214,112510.0,112500.0,0.62496351]
[1756405286359,0.89056214,112510.0,112500.0,0.62496351]
[1756405287056,0.86598214,112510.0,112500.0,0.62496351]
[1756405287353,0.02654214,112510.0,112500.0,0.62496351]
[1756405288060,0.02654214,112510.0,112500.0,0.87496351]
[1756405289052,0.02354214,112510.0,112500.0,0.87496351]
[1756405289253,0.02554214,112510.0,112500.0,0.87496351]
[1756405289658,0.02354214,112510.0,112500.0,0.87496351]
[1756405291361,0.02354214,112510.0,112500.0,0.98643054]
[1756405293963,0.02354214,112510.0,112500.0,0.98682054]
[1756405296061,0.02354214,112510.0,112500.0,1.46474959]
[1756405296263,0.02354214,112510.0,112500.0,0.98682054]
[1756405296461,0.02354214,112510.0,112500.0,1.81066054]
[1756405297256,0.02354214,112510.0,112500.0,0.98682054]
[1756405297461,0.02354214,112510.0,112500.0,1.81062054]
[1756405298363,0.02354214,112510.0,112500.0,1.69915351]
[1756405300264,0.02354214,112510.0,112500.0,0.87535351]
[1756405300565,0.02354214,112510.0,112500.0,1.69915351]
[1756405306170,0.03961214,112510.0,112500.0,0.87535351]
[1756405306366,0.02354214,112510.0,112500.0,1.81058054]
[1756405307571,0.02354214,112510.0,112500.0,1.69911351]
[1756405311271,0.02354214,112510.0,112500.0,2.29630368]
[1756405313174,0.02354214,112510.0,112500.0,2.04630368]
[1756405318476,0.02354214,112510.0,112500.0,1.22254368]
[1756405318680,0.02354214,112510.0,112500.0,2.04622368]
[1756405319579,0.02354214,112510.0,112500.0,1.22254368]
[1756405319781,0.02154214,112510.0,112500.0,2.04618368]
[1756405319973,0.02254214,112510.0,112500.0,2.04618368]
[1756405320168,0.02154214,112510.0,112500.0,1.22254368]
[1756405320368,0.04643214,112510.0,112500.0,2.04618368]
[1756405320878,0.06281214,112510.0,112500.0,2.04618368]
[1756405321080,0.06181214,112510.0,112500.0,2.04618368]
[1756405321280,0.31181214,112510.0,112500.0,1.22354368]
[1756405322080,0.31081214,112510.0,112500.0,0.14942446]
[1756405322278,0.29127,112510.0,112500.0,1.22454368]
[1756405323282,0.29127,112510.0,112500.0,0.62738022]
[1756405329083,0.29127,112510.0,112500.0,0.14942446]
[1756405329284,0.29127,112510.0,112500.0,0.62738022]
[1756405330692,0.29127,112510.0,112500.0,0.73884725]
[1756405332289,0.29127,112510.0,112500.0,0.62738022]
[1756405334484,0.29127,112510.0,112500.0,0.26137269]
[1756405334683,0.380144,112510.0,112500.0,0.62669655]
[1756405334882,0.380144,112510.0,112500.0,0.71557845]
[1756405335085,0.380144,112510.0,112500.0,0.60363022]
[1756405335486,0.380144,112510.0,112500.0,0.62684022]
[1756405335688,0.380144,112510.0,112500.0,0.60363022]
[1756405336381,0.380144,112510.0,112500.0,0.62584022]
[1756405336580,0.380144,112510.0,112500.0,0.62484022]
[1756405336788,0.38893144,112510.0,112500.0,0.62484022]
[1756405337494,1.21249144,112510.0,112500.0,0.62484022]
[1756405338294,1.21249144,112510.0,112500.0,0.01827256]
[1756405338595,1.6904472,112510.0,112500.0,0.01827256]
[1756405339288,1.6904472,112510.0,112500.0,0.10715456]
[1756405339491,0.38893144,112510.0,112500.0,0.10715456]
[1756405339695,1.21345144,112510.0,112500.0,0.10715456]
[1756405339896,1.21445144,112510.0,112500.0,0.10715456]
[1756405340898,1.6924072,112510.0,112500.0,0.10715456]
[1756405341097,0.8688872,112510.0,112500.0,0.10715456]
[1756405341300,1.6924072,112510.0,112500.0,0.10715456]
[1756405341495,0.8688872,112510.0,112500.0,0.10715456]
[1756405341697,1.6924472,112510.0,112500.0,0.10715456]
[1756405342396,1.6924472,112510.0,112500.0,0.01827256]
[1756405343191,0.8688872,112510.0,112500.0,0.01827256]
[1756405343397,1.6924472,112510.0,112500.0,0.10715446]
[1756405344697,1.21449144,112510.0,112500.0,0.10715446]
[1756405344900,0.39093144,112510.0,112500.0,0.10715446]
[1756405345100,1.6924472,112510.0,112500.0,0.10715446]
[1756405345301,0.39093144,112510.0,112500.0,0.12331446]
[1756405345500,0.30205744,112510.0,112500.0,0.14652446]
[1756405345697,1.09939,112510.0,112500.0,0.62448022]
[1756405346093,1.188264,112510.0,112500.0,0.62448022]
[1756405346699,1.187264,112510.0,112500.0,0.62448022]
[1756405346900,1.186264,112510.0,112500.0,0.62448022]
[1756405347995,1.203704,112510.0,112500.0,0.62448022]
[1756405348905,0.380144,112510.0,112500.0,0.62448022]
[1756405349099,1.203704,112510.0,112500.0,0.62448022]
[1756405349300,1.467504,112510.0,112500.0,0.62448022]
[1756405350006,1.12863,112510.0,112500.0,0.62448022]
[1756405351503,1.217504,112510.0,112500.0,0.62448022]
[1756405352907,1.217504,112510.0,112500.0,0.14652446]
[1756405353108,1.217504,112510.0,112500.0,0.62448022]
[1756405355606,1.217504,112510.0,112500.0,0.14652446]
[1756405355807,1.217504,112510.0,112500.0,0.62448022]